fUST/lending_fUST_20250819
["ID","MTS","AMOUNT","RATE_DAILY","PERIOD"]
[380181026,1755595848610,-151.0,0.0002,2]
[380181027,1755595848620,-480.0,0.0002,2]
[380181028,1755595848629,-151.0,0.0002,2]
[380181029,1755595848638,-480.0,0.0002,2]
[380181030,1755595848647,-839.03,0.0002,2]
[380181031,1755595848656,-151.0,0.0002,2]
[380181032,1755595848665,-423.79181448,0.0002,2]
[380181033,1755595848675,-839.54,0.0002,2]
[380181034,1755595848684,-480.0,0.0002,2]
[380181035,1755595848693,-400.0,0.0002,2]
[380181036,1755595848703,-480.0,0.0002,2]
[380181037,1755595848712,-2368.07,0.0002,2]
[380181038,1755595848721,-480.0,0.0002,2]
[380181039,1755595848738,-480.0,0.0002,2]
[380181040,1755595848753,-3297.08,0.0002,2]
[380181041,1755595848769,-494.80484904,0.0002,2]
[380181042,1755595848786,-1162.54,0.0002,2]
[380181043,1755595848803,-887.6,0.0002,2]
[380181044,1755595848820,-480.0,0.0002,2]
[380181045,1755595848835,-165.078674,0.0002,2]
[380181046,1755595848851,-480.0,0.0002,2]
[380181047,1755595848865,-2481.53,0.0002,2]
[380181048,1755595848879,-151.0,0.0002,2]
[380181049,1755595848894,-151.0,0.0002,2]
[380181050,1755595848909,-736.12,0.0002,2]
[380181051,1755595848927,-1298.0,0.0002,2]
[380181052,1755595848942,-151.0,0.0002,2]
[380181053,1755595848956,-151.0,0.0002,2]
[380181054,1755595848974,-480.0,0.0002,2]
[380181055,1755595848988,-480.0,0.0002,2]
[380181056,1755595849003,-151.0,0.0002,2]
[380181057,1755595849018,-890.08,0.0002,2]
[380181058,1755595849031,-190.993123,0.0002,2]
[380181059,1755595849045,-151.0,0.0002,2]
[380181060,1755595849059,-480.0,0.0002,2]
[380181061,1755595849073,-190.993123,0.0002,2]
[380181062,1755595849087,-2728.91,0.0002,2]
[380181063,1755595849102,-151.0,0.0002,2]
[380181064,1755595849117,-480.0,0.0002,2]
[380181065,1755595849131,-480.0,0.0002,2]
[380181066,1755595849145,-480.0,0.0002,2]
[380181067,1755595849160,-903.43,0.0002,2]
[380181068,1755595849174,-151.0,0.0002,2]
[380181069,1755595849188,-480.0,0.0002,2]
[380181070,1755595849203,-841.68,0.0002,2]
[380181071,1755595849217,-480.0,0.0002,2]
[380181072,1755595849230,-925.52378039,0.00020021,2]
[380181073,1755595849245,-1000.0,0.00020021,2]
[380181074,1755595849259,-504.24025041,0.00020021,2]
[380181075,1755595849272,-1000.0,0.00020021,2]
[380181076,1755595849286,-1000.0,0.00020021,2]
[380181077,1755595849300,-160.0,0.00020022,2]
[380181078,1755595849313,-249.6,0.00020043,2]
[380181079,1755595849327,-168.0,0.00020109,2]
[380181080,1755595849341,-1613.04631675,0.00020196,2]
[380181081,1755595849352,-1158.88170576,0.00020198,2]
[380181082,1755595849361,-168.0,0.00020207,2]
[380181083,1755595849371,-857.36847226,0.00020208,2]
[380181084,1755595849380,-186.37651637,0.00020247,2]
[380181085,1755595849389,-195.6953422,0.00020247,2]
[380181086,1755595849399,-167.73886473,0.00020247,2]
[380181087,1755595849408,-500.0,0.00020272,2]
[380181088,1755595849420,-480.0,0.00020273,2]
[380181089,1755595849429,-480.0,0.00020273,2]
[380181090,1755595849438,-480.0,0.00020273,2]
[380181091,1755595849448,-480.0,0.00020273,2]
[380181092,1755595849458,-221.7848094,0.00020273,2]
[380181093,1755595849468,-480.0,0.00020273,2]
[380181094,1755595849478,-480.0,0.00020273,2]
[380181095,1755595849487,-480.0,0.00020273,2]
[380181096,1755595849498,-480.0,0.00020273,2]
[380181097,1755595849508,-480.0,0.00020273,2]
[380181098,1755595849682,-495.03014447,0.00020273,2]
[380181099,1755595849693,-959.18,0.00020273,2]
[380181100,1755595849706,-480.0,0.00020273,2]
[380181101,1755595849715,-480.0,0.00020273,2]
[380181102,1755595849724,-400.66,0.00020273,2]
[380181103,1755595849733,-668.42,0.00020273,2]
[380181104,1755595849742,-480.0,0.00020273,2]
[380181105,1755595849751,-480.0,0.00020273,2]
[380181106,1755595849761,-480.0,0.00020273,2]
[380181107,1755595849770,-480.0,0.00020273,2]
[380181108,1755595849779,-480.0,0.00020273,2]
[380181109,1755595849789,-151.0,0.00020273,2]
[380181110,1755595849798,-480.0,0.00020273,2]
[380181111,1755595849807,-480.0,0.00020273,2]
[380181112,1755595849820,-480.0,0.00020273,2]
[380181113,1755595849829,-199.80804356,0.00020273,2]
[380181114,1755595849838,-480.0,0.00020273,2]
[380181115,1755595849847,-480.0,0.00020273,2]
[380181116,1755595849856,-151.0,0.00020273,2]
[380181117,1755595849867,-480.0,0.00020273,2]
[380181118,1755595849876,-265.456392,0.00020273,2]
[380181119,1755595849885,-265.456392,0.00020273,2]
[380181120,1755595849894,-151.0,0.00020273,2]
[380181121,1755595849904,-183.362902,0.00020273,2]
[380181122,1755595849913,-480.0,0.00020273,2]
[380181123,1755595849922,-480.0,0.00020273,2]
[380181124,1755595849932,-554.08,0.00020273,2]
[380181125,1755595849941,-729.29,0.00020273,2]
[380181126,1755595849951,-151.0,0.00020273,2]
[380181127,1755595849961,-1266.02,0.00020273,2]
[380181128,1755595849970,-151.0,0.00020273,2]
[380181129,1755595849979,-151.0,0.00020273,2]
[380181130,1755595849989,-480.0,0.00020273,2]
[380181131,1755595849998,-759.37,0.00020273,2]
[380181132,1755595850007,-151.0,0.00020273,2]
[380181133,1755595850016,-258.391223,0.00020273,2]
[380181134,1755595850026,-258.391223,0.00020273,2]
[380181135,1755595850035,-480.0,0.00020273,2]
[380181136,1755595850043,-163.212059,0.00020273,2]
[380181137,1755595850052,-163.212059,0.00020273,2]
[380181138,1755595850062,-480.0,0.00020273,2]
[380181139,1755595850071,-998.44,0.00020273,2]
[380181140,1755595850080,-151.0,0.00020273,2]
[380181141,1755595850089,-578.62106382,0.00020273,2]
[380181142,1755595850098,-480.0,0.00020273,2]
[380181143,1755595850107,-151.0,0.00020273,2]
[380181144,1755595850117,-151.0,0.00020273,2]
[380181145,1755595850126,-480.0,0.00020273,2]
[380181146,1755595850135,-480.0,0.00020273,2]
[380181147,1755595850145,-480.0,0.00020273,2]
[380181148,1755595850154,-591.19,0.00020273,2]
[380181149,1755595850163,-512.76471533,0.00020273,2]
[380181150,1755595850172,-480.0,0.00020273,2]
[380181151,1755595850181,-855.31,0.00020273,2]
[380181152,1755595850191,-480.0,0.00020273,2]
[380181153,1755595850202,-480.0,0.00020273,2]
[380181154,1755595850211,-428.517852,0.00020273,2]
[380181155,1755595850220,-1682.16,0.00020273,2]
[380181156,1755595850229,-151.0,0.00020273,2]
[380181157,1755595850238,-428.517852,0.00020273,2]
[380181158,1755595850247,-512.03,0.00020273,2]
[380181159,1755595850256,-480.0,0.00020273,2]
[380181160,1755595850264,-480.0,0.00020273,2]
[380181161,1755595850273,-480.0,0.00020273,2]
[380181162,1755595850283,-480.0,0.00020273,2]
[380181163,1755595850292,-480.0,0.00020273,2]
[380181164,1755595850302,-480.0,0.00020273,2]
[380181165,1755595850311,-1412.57,0.00020273,2]
[380181166,1755595850320,-480.0,0.00020273,2]
[380181167,1755595850329,-4082.28,0.00020273,2]
[380181168,1755595850338,-1398.5,0.00020273,2]
[380181169,1755595850347,-649.41,0.00020273,2]
[380181170,1755595850357,-1182.67,0.00020273,2]
[380181171,1755595850365,-808.41,0.00020273,2]
[380181172,1755595850374,-579.25,0.00020273,2]
[380181173,1755595850383,-749.54,0.00020273,2]
[380181174,1755595850393,-480.0,0.00020273,2]
[380181175,1755595850402,-480.0,0.00020273,2]
[380181176,1755595850412,-611.73,0.00020273,2]
[380181177,1755595850425,-667.49,0.00020273,2]
[380181178,1755595850434,-681.34,0.00020273,2]
[380181179,1755595850442,-1116.36,0.00020273,2]
[380181180,1755595850452,-480.0,0.00020273,2]
[380181181,1755595850462,-480.0,0.00020273,2]
[380181182,1755595850471,-993.66,0.00020273,2]
[380181183,1755595850480,-433.72,0.00020273,2]
[380181184,1755595850489,-480.0,0.00020273,2]
[380181185,1755595850499,-560.75,0.00020273,2]
[380181186,1755595850508,-480.0,0.00020273,2]
[380181187,1755595850517,-480.0,0.00020273,2]
[380181188,1755595850527,-2023.2,0.00020273,2]
[380181189,1755595850536,-2315.47,0.00020273,2]
[380181190,1755595850545,-897.37,0.00020273,2]
[380181191,1755595850555,-556.91,0.00020273,2]
[380181192,1755595850564,-220.87746533,0.00020273,2]
[380181193,1755595850573,-227.18652524,0.00020273,2]
[380181194,1755595850615,-252.81347476,0.00020273,2]
[380181195,1755595850624,-2161.73,0.00020273,2]
[380181196,1755595850633,-480.0,0.00020273,2]
[380181197,1755595850642,-480.0,0.00020273,2]
[380181198,1755595850651,-480.0,0.00020273,2]
[380181199,1755595850661,-433.81527715,0.00020273,2]
[380181200,1755595850672,-6602.40472285,0.00020273,2]
[380181201,1755595850682,-480.0,0.00020273,2]
[380181202,1755595850691,-490.23705647,0.00020273,2]
[380181203,1755595850701,-3425.19945364,0.00020273,2]
[380181204,1755595850806,-480.0,0.00019178,2]
[380181205,1755595850815,-480.0,0.00019178,2]
[380181206,1755595850825,-480.0,0.00019452,2]
[380181207,1755595850834,-1991.45766972,0.00020273,2]
[380181208,1755595850850,-386.30706356,0.00020273,2]
[380181209,1755595850861,-344.80581308,0.00020273,2]
[380181210,1755595850870,-1215.85226236,0.00020273,2]
[380181211,1755595850881,-521.72773764,0.00020273,2]
[380181212,1755595850891,-689.79,0.00020273,2]
[380181213,1755595850900,-135.17453438,0.00020273,2]
[380181214,1755595850911,-512.31546562,0.00020273,2]
[380181215,1755595850920,-480.0,0.00020273,2]
[380181216,1755595850930,-480.0,0.00020273,2]
[380181217,1755595850939,-211.484218,0.00020273,2]
[380181218,1755595850947,-690.17,0.00020273,2]
[380181219,1755595850957,-529.61,0.00020273,2]
[380181220,1755595850966,-151.0,0.00020273,2]
[380181221,1755595850975,-123.6612796,0.00020273,2]
[380181222,1755595850987,-318.23649186,0.00020273,2]
[380181223,1755595851132,-400.0,0.00019178,2]
[380181224,1755595851141,-460.0,0.00019178,2]
[380181225,1755595851151,-13047.64887587,0.00019352,2]
[380181226,1755595851161,-977.83222854,0.00020273,2]
[380181227,1755595851171,-480.0,0.00020273,2]
[380181228,1755595851180,-536.157911,0.00020273,2]
[380181229,1755595851189,-211.484218,0.00020273,2]
[380181230,1755595851198,-536.157911,0.00020273,2]
[380181231,1755595851208,-151.0,0.00020273,2]
[380181232,1755595851217,-480.0,0.00020273,2]
[380181233,1755595851227,-151.0,0.00020273,2]
[380181234,1755595851239,-480.0,0.00020273,2]
[380181235,1755595851248,-151.0,0.00020273,2]
[380181236,1755595851257,-480.0,0.00020273,2]
[380181237,1755595851266,-839.03,0.00020273,2]
[380181238,1755595851275,-151.0,0.00020273,2]
[380181239,1755595851284,-839.54,0.00020273,2]
[380181240,1755595851294,-480.0,0.00020273,2]
[380181241,1755595851303,-480.0,0.00020273,2]
[380181242,1755595851312,-2368.07,0.00020273,2]
[380181243,1755595851321,-480.0,0.00020273,2]
[380181244,1755595851330,-480.0,0.00020273,2]
[380181245,1755595851339,-2480.33485557,0.00020273,2]
[380181246,1755595851483,-193.14425409,0.00019178,2]
[380181247,1755595851495,-286.85574591,0.00019178,2]
[380181248,1755595851507,-305.40425409,0.00019178,2]
[380181249,1755595851516,-592.26,0.00019452,2]
[380181250,1755595851526,-592.26,0.00019726,2]
[380181251,1755595851536,-592.26,0.0002,2]
[380181252,1755595851545,-816.74514443,0.00020273,2]
[380181253,1755595851554,-887.6,0.00020273,2]
[380181254,1755595851563,-1162.54,0.00020273,2]
[380181255,1755595851572,-480.0,0.00020273,2]
[380181256,1755595851582,-480.0,0.00020273,2]
[380181257,1755595851591,-2481.53,0.00020273,2]
[380181258,1755595851600,-153.196318,0.00020273,2]
[380181259,1755595851609,-151.0,0.00020273,2]
[380181260,1755595851618,-736.12,0.00020273,2]
[380181261,1755595851627,-1298.0,0.00020273,2]
[380181262,1755595851636,-151.0,0.00020273,2]
[380181263,1755595851645,-480.0,0.00020273,2]
[380181264,1755595851654,-480.0,0.00020273,2]
[380181265,1755595851663,-190.993123,0.00020273,2]
[380181266,1755595851673,-890.08,0.00020273,2]
[380181267,1755595851682,-151.854492,0.00020273,2]
[380181268,1755595851691,-480.0,0.00020273,2]
[380181269,1755595851701,-190.993123,0.00020273,2]
[380181270,1755595851710,-2728.91,0.00020273,2]
[380181271,1755595851720,-218.893992,0.00020273,2]
[380181272,1755595851729,-536.73951683,0.00020273,2]
[380181273,1755595851739,-480.0,0.00020273,2]
[380181274,1755595851748,-480.0,0.00020273,2]
[380181275,1755595851757,-903.43,0.00020273,2]
[380181276,1755595851766,-151.0,0.00020273,2]
[380181277,1755595851776,-841.68,0.00020273,2]
[380181278,1755595851784,-480.0,0.00020273,2]
[380181279,1755595851794,-637.0,0.00020285,2]
[380181280,1755595851803,-2204.832,0.00020285,2]
[380181281,1755595851812,-168.0,0.00020297,2]
[380181282,1755595851821,-168.0,0.00020299,2]
[380181283,1755595851831,-500.0,0.00020312,2]
[380181284,1755595851840,-5016.65081105,0.00020313,2]
[380181285,1755595851848,-160.0,0.00020322,3]
[380181286,1755595851857,-218.47563043,0.00020322,5]
[380181287,1755595851867,-501.44878262,0.00020333,2]
[380181288,1755595851877,-260.2015187,0.00020367,2]
[380181289,1755595851888,-1000.0,0.00020377,2]
[380181290,1755595851897,-151.0,0.000204,4]
[380181291,1755595851906,-202.6569521,0.00020409,2]
[380181292,1755595852015,-250.193768,0.00020409,2]
[380181293,1755595852024,-969.5,0.00020437,15]
[380181294,1755595852033,-168.0,0.00020477,2]
[380181295,1755595852042,-151.0,0.000205,4]
[380181296,1755595852051,-645.0,0.000205,2]
[380181297,1755595852060,-151.0,0.00020501,7]
[380181298,1755595852069,-151.0,0.00020501,7]
[380181299,1755595852078,-151.0,0.00020501,7]
[380181300,1755595852088,-154.926989,0.00020501,7]
[380181301,1755595852097,-151.0,0.00020501,2]
[380181302,1755595852107,-189.707204,0.00020501,2]
[380181303,1755595852116,-189.707204,0.00020501,2]
[380181304,1755595852125,-151.0,0.00020501,2]
[380181305,1755595852135,-155.0,0.00020501,2]
[380181306,1755595852144,-155.0,0.00020501,2]
[380181307,1755595852153,-326.0,0.00020501,2]
[380181308,1755595852163,-326.0,0.00020501,2]
[380181309,1755595852172,-326.0,0.00020501,2]
[380181310,1755595852181,-326.0,0.00020501,2]
[380181311,1755595852192,-326.0,0.00020501,2]
[380181312,1755595852202,-326.0,0.00020501,2]
[380181313,1755595852211,-326.0,0.00020501,2]
[380181314,1755595852219,-326.0,0.00020501,2]
[380181315,1755595852229,-326.0,0.00020501,2]
[380181316,1755595852238,-326.0,0.00020501,2]
[380181317,1755595852247,-326.0,0.00020501,2]
[380181318,1755595852256,-329.86479115,0.00020501,2]
[380181319,1755595852266,-203.25529554,0.00020501,2]
[380181320,1755595852275,-161.0,0.00020501,2]
[380181321,1755595852287,-161.0,0.00020501,2]
[380181322,1755595852297,-161.0,0.00020501,2]
[380181323,1755595852307,-168.28544289,0.00020501,2]
[380181324,1755595852316,-1762.0,0.00020501,2]
[380181325,1755595852327,-1762.0,0.00020501,2]
[380181326,1755595852336,-1762.0,0.00020501,2]
[380181327,1755595852345,-1762.0,0.00020501,2]
[380181328,1755595852354,-1762.0,0.00020501,2]
[380181329,1755595852363,-1762.0,0.00020501,2]
[380181330,1755595852372,-1623.77047188,0.00020501,2]
[380181331,1755595852381,-186.37651637,0.00020521,2]
[380181332,1755595852390,-1000.0,0.00020521,2]
[380181333,1755595852400,-1000.0,0.00020521,2]
[380181334,1755595852412,-249.6,0.00020528,3]
[380181335,1755595852431,-151.0,0.00020535,2]
[380181336,1755595852442,-4219.36209102,0.00020535,2]
[380181337,1755595852451,-151.0,0.00020536,2]
[380181338,1755595852460,-151.0,0.00020536,2]
[380181339,1755595852469,-179.888096,0.00020536,2]
[380181340,1755595852479,-1000.0,0.00020536,2]
[380181341,1755595852488,-1000.0,0.00020536,2]
[380181342,1755595852497,-1000.0,0.00020536,2]
[380181343,1755595852506,-1000.0,0.00020536,2]
[380181344,1755595852516,-1000.0,0.00020536,2]
[380181345,1755595852525,-1000.0,0.00020536,2]
[380181346,1755595852535,-1000.0,0.00020536,2]
[380181347,1755595852544,-1000.0,0.00020536,2]
[380181348,1755595852554,-1000.0,0.00020536,2]
[380181349,1755595852563,-1000.0,0.00020536,2]
[380181350,1755595852572,-320.47404668,0.00020536,2]
[380181351,1755595852589,-351.57943091,0.00020273,2]
[380181352,1755595959805,176.755401,0.00013699,2]
[380181353,1755595997921,750.19741328,0.00019078,2]
[380181354,1755596057936,1009.0,0.00028767,120]
[380181355,1755596139019,2576.48793637,0.00019,2]
[380181356,1755596139040,5000.0,0.00019,2]
[380181357,1755596139062,5000.0,0.00019,2]
[380181358,1755596139083,5000.0,0.00019,2]
[380181359,1755596139104,5000.0,0.00019,2]
[380181360,1755596139125,5000.0,0.00019,2]
[380181361,1755596139147,5000.0,0.00019,2]
[380181362,1755596139169,3972.85206363,0.00019,2]
[380181364,1755596191546,656.42273662,0.00019078,2]
[380181368,1755596261247,300.0,0.00019,2]
[380181371,1755596355077,70.72519975,0.00019,2]
[380181372,1755596355140,529.27480025,0.00019,2]
[380181376,1755596367982,600.0,0.00019,2]
[380181377,1755596374785,600.0,0.00019,5]
[380181378,1755596382188,600.0,0.00019,5]
[380181379,1755596382911,600.0,0.00019,5]
[380181380,1755596389112,574.36989449,0.00019078,2]
[380181381,1755596411378,302.54622906,0.00018983,2]
[380181382,1755596429347,165.95922728,0.00019078,2]
[380181383,1755596570771,500.0,0.00018619,2]
[380181384,1755596575424,500.0,0.00018619,2]
[380181385,1755596580020,27.84984892,0.00018619,2]
[380181386,1755596580045,472.15015108,0.00018619,2]
[380181387,1755596580670,502.57365774,0.00019078,2]
[380181388,1755596638392,300.0,0.00019,2]
[380181389,1755596639226,300.0,0.00019,2]
[380181390,1755596639671,300.0,0.00019,2]
[380181391,1755596640008,300.0,0.00019,2]
[380181392,1755596640421,300.0,0.00019,2]
[380181393,1755596640751,300.0,0.00019,2]
[380181394,1755596641168,300.0,0.00019,2]
[380181395,1755596641507,300.0,0.00019,2]
[380181396,1755596647308,300.0,0.00019,5]
[380181397,1755596647744,300.0,0.00019,5]
[380181398,1755596648224,300.0,0.00019,5]
[380181399,1755596648654,300.0,0.00019,5]
[380181400,1755596648973,300.0,0.00019,5]
[380181401,1755596649374,125.27619118,0.00019,5]
[380181402,1755596649395,174.72380882,0.00019,5]
[380181403,1755596649809,300.0,0.00019,5]
[380181404,1755596650812,300.0,0.00019,5]
[380181405,1755596651279,300.0,0.00019,5]
[380181406,1755596652431,300.0,0.00019,5]
[380181407,1755596653263,300.0,0.00019,5]
[380181408,1755596653733,300.0,0.00019,5]
[380181409,1755596654021,300.0,0.00019,5]
[380181410,1755596667061,600.0,0.00019,5]
[380181411,1755596667516,600.0,0.00019,5]
[380181412,1755596668074,600.0,0.00019,5]
[380181413,1755596668352,600.0,0.00019,5]
[380181414,1755596668789,325.27619118,0.00019,5]
[380181415,1755596668810,274.72380882,0.00019,5]
[380181416,1755596727528,188.3707618,0.00018153,2]
[380181417,1755596758114,164.73690278,0.00019078,2]
[380181418,1755596764810,171.29090774,0.00018983,2]
[380181419,1755596765652,439.75195047,0.00019078,2]
[380181420,1755596827090,-287.7592482,0.00019078,2]
[380181421,1755596828120,-712.2407518,0.00019078,2]
[380181422,1755596828142,-342.0,0.00019099,2]
[380181423,1755596828166,-480.92213577,0.00019099,2]
[380181428,1755596910808,167.91763,0.00013699,2]
[380181429,1755596929476,486.7355436,0.00027077,120]
[380181430,1755596958294,384.78295667,0.00019078,2]
[380181450,1755597031997,-708.07786423,0.00019099,2]
[380181452,1755597032006,-300.0,0.00019099,2]
[380181454,1755597032016,-600.0,0.000191,5]
[380181456,1755597032025,-600.0,0.000191,5]
[380181458,1755597032034,-600.0,0.000191,5]
[380181460,1755597032044,-600.0,0.000191,5]
[380181462,1755597032053,-600.0,0.000191,5]
[380181464,1755597032063,-600.0,0.000191,2]
[380181466,1755597032072,-600.0,0.000191,2]
[380181468,1755597032081,-300.0,0.000191,2]
[380181470,1755597032090,-300.0,0.000191,2]
[380181472,1755597032099,-268.17331347,0.00019125,2]
[380181609,1755597038018,-231.82668653,0.00019125,2]
[380181610,1755597038029,-151.0,0.00019166,2]
[380181611,1755597038038,-500.0,0.00019173,2]
[380181612,1755597038048,-501.00130581,0.00019173,2]
[380181613,1755597038057,-500.0,0.00019173,2]
[380181614,1755597038067,-500.0,0.00019173,2]
[380181615,1755597038076,-500.0,0.00019173,2]
[380181617,1755597038085,-500.0,0.00019173,2]
[380181619,1755597038094,-500.0,0.00019173,2]
[380181621,1755597038103,-500.0,0.00019173,2]
[380181622,1755597038113,-500.0,0.00019177,2]
[380181623,1755597038122,-500.0,0.00019177,2]
[380181624,1755597038131,-500.0,0.00019177,2]
[380181625,1755597038141,-500.0,0.00019177,2]
[380181627,1755597038150,-366.67535637,0.00019177,2]
[380181629,1755597038159,-500.0,0.00019177,2]
[380181630,1755597038168,-247.83065937,0.00019177,2]
[380181631,1755597038177,-500.0,0.00019177,2]
[380181632,1755597038187,-500.0,0.00019177,2]
[380181634,1755597038195,-500.0,0.00019177,2]
[380181636,1755597038205,-500.0,0.00019177,2]
[380181637,1755597038214,-480.0,0.00019178,2]
[380181638,1755597038223,-480.0,0.00019178,2]
[380181639,1755597038233,-563.43479515,0.00019178,2]
[380181640,1755597038243,-480.0,0.00019178,2]
[380181641,1755597038252,-480.0,0.00019178,2]
[380181642,1755597038261,-398.32930879,0.00019178,2]
[380181643,1755597038270,-480.0,0.00019178,2]
[380181644,1755597038279,-332.74049455,0.00019178,2]
[380181645,1755597038288,-463.90355739,0.00019178,2]
[380181646,1755597038297,-480.0,0.00019178,2]
[380181647,1755597038306,-480.0,0.00019178,2]
[380181648,1755597038315,-481.24196959,0.00019178,2]
[380181649,1755597038325,-235.1457587,0.00019178,2]
[380181650,1755597038334,-480.0,0.00019178,2]
[380181651,1755597038343,-282.97116056,0.00019178,2]
[380181652,1755597038352,-420.0,0.00019178,2]
[380181653,1755597038361,-480.0,0.00019178,2]
[380181654,1755597038370,-480.0,0.00019178,2]
[380181655,1755597038380,-480.0,0.00019178,2]
[380181656,1755597038389,-480.0,0.00019178,2]
[380181657,1755597038398,-480.0,0.00019178,2]
[380181658,1755597038407,-200.14094829,0.00019178,7]
[380181659,1755597038416,-480.0,0.00019178,2]
[380181660,1755597038426,-480.0,0.00019178,2]
[380181661,1755597038435,-482.44467574,0.00019178,2]
[380181662,1755597038444,-292.04045154,0.00019178,2]
[380181663,1755597038454,-480.0,0.00019178,2]
[380181664,1755597038463,-480.0,0.00019178,2]
[380181665,1755597038471,-480.0,0.00019178,2]
[380181666,1755597038481,-480.0,0.00019178,2]
[380181667,1755597038490,-480.0,0.00019178,2]
[380181668,1755597038500,-480.0,0.00019178,2]
[380181669,1755597038509,-480.0,0.00019178,2]
[380181670,1755597038519,-500.0,0.00019178,2]
[380181671,1755597038529,-480.0,0.00019178,2]
[380181672,1755597038538,-480.0,0.00019178,2]
[380181673,1755597038547,-480.0,0.00019178,2]
[380181674,1755597038556,-303.09042362,0.00019178,2]
[380181675,1755597038565,-454.51275574,0.00019178,2]
[380181676,1755597038574,-480.0,0.00019178,2]
[380181677,1755597038583,-480.0,0.00019178,2]
[380181678,1755597038592,-480.0,0.00019178,2]
[380181679,1755597038601,-480.0,0.00019178,2]
[380181680,1755597038610,-480.0,0.00019178,2]
[380181681,1755597038620,-480.0,0.00019178,2]
[380181682,1755597038629,-480.0,0.00019178,2]
[380181683,1755597038638,-480.0,0.00019178,2]
[380181684,1755597038647,-480.0,0.00019178,2]
[380181685,1755597038656,-416.02334464,0.00019178,2]
[380181686,1755597038665,-440.0,0.00019178,2]
[380181687,1755597038674,-460.0,0.00019178,2]
[380181688,1755597038683,-203.67309381,0.00019178,2]
[380181689,1755597038692,-941.72,0.00019178,2]
[380181690,1755597038701,-676.54,0.00019178,2]
[380181691,1755597038710,-433.32605656,0.00019178,2]
[380181692,1755597038719,-480.0,0.00019178,2]
[380181693,1755597038729,-480.0,0.00019178,2]
[380181694,1755597038738,-420.0,0.00019178,2]
[380181695,1755597038747,-480.0,0.00019178,2]
[380181696,1755597038756,-490.7,0.00019178,2]
[380181697,1755597038766,-480.0,0.00019178,2]
[380181698,1755597038778,-480.0,0.00019178,2]
[380181699,1755597038787,-462.60378996,0.00019178,2]
[380181700,1755597038796,-481.51820273,0.00019178,2]
[380181701,1755597038805,-480.0,0.00019178,2]
[380181702,1755597038816,-480.0,0.00019178,2]
[380181703,1755597038825,-233.57057935,0.00019178,2]
[380181704,1755597038834,-480.0,0.00019178,2]
[380181705,1755597038843,-480.0,0.00019178,2]
[380181706,1755597038855,-480.0,0.00019178,2]
[380181707,1755597038864,-480.0,0.00019178,2]
[380181708,1755597038873,-480.0,0.00019178,2]
[380181709,1755597038882,-480.0,0.00019178,2]
[380181710,1755597038891,-480.0,0.00019178,2]
[380181711,1755597038902,-500.0,0.00019178,2]